bitfinex-derivatives/quotes_SOLF0:USTF0_20250808
["timestamp","ask_amount","ask_price","bid_price","bid_amount"]
[1754631170255,6.41794759,174.51,174.49,3.13]
[1754631170457,3.17,174.5,174.49,3.13]
[1754631172450,5.7297,174.5,174.47,3.13]
[1754631172653,3.17,174.49,174.47,3.13]
[1754631173258,8.9,174.49,174.48,3.13]
[1754631174860,3.17,174.49,174.48,3.13]
[1754631176261,5.7298,174.5,174.48,3.13]
[1754631176452,8.8998,174.5,174.48,3.13]
[1754631176955,8.8998,174.5,174.49,3.13]
[1754631182359,5.7304,174.48,174.47,3.12]
[1754631182663,12.08834759,174.48,174.47,3.12]
[1754631184264,8.8404,174.48,174.47,3.12]
[1754631184859,8.97804759,174.49,174.47,3.12]
[1754631185166,12.08804759,174.49,174.47,3.12]
[1754631185365,6.35794759,174.49,174.47,3.12]
[1754631185566,5.7303,174.48,174.47,3.12]
[1754631186266,6.35794759,174.49,174.47,3.12]
[1754631186468,3.24794759,174.49,174.47,3.12]
[1754631187167,3.24794759,174.49,174.47,8.8505]
[1754631187365,3.24794759,174.49,174.47,3.12]
[1754631187867,8.97794759,174.49,174.47,3.12]
[1754631189370,12.08794759,174.49,174.47,3.12]
[1754631192981,5.7303,174.48,174.47,3.12]
[1754631193373,8.8403,174.48,174.47,3.12]
[1754631195374,5.731,174.46,174.43,104.46]
[1754631195574,6.35794759,174.47,174.43,104.46]
[1754631195777,6.35794759,174.47,174.44,3.12]
[1754631195979,12.08874759,174.47,174.44,8.8514]
[1754631196376,12.08874759,174.47,174.45,3.12]
[1754631196678,3.11,174.46,174.45,3.12]
[1754631197175,8.97874759,174.47,174.45,3.12]
[1754631197373,12.08874759,174.47,174.45,3.12]
[1754631197578,12.08874759,174.47,174.46,3.12]
[1754631199175,6.35794759,174.47,174.41,3.12]
[1754631199382,3.11,174.44,174.41,3.12]
[1754631199571,6.35794759,174.43,174.41,3.12]
[1754631200076,12.09014759,174.43,174.41,3.12]
[1754631200481,6.35794759,174.43,174.41,3.12]
[1754631200981,6.35794759,174.43,174.42,3.12]
[1754631201581,12.08994759,174.43,174.42,3.12]
[1754631202277,3.11,174.42,174.36,3.12]
[1754631202479,3.24794759,174.4,174.37,3.12]
[1754631202679,12.09094759,174.4,174.37,8.8539]
[1754631202881,12.09094759,174.4,174.38,3.12]
[1754631203279,12.09094759,174.4,174.38,8.8535]
[1754631203484,6.35794759,174.4,174.39,3.12]
[1754631204279,3.11,174.39,174.36,104.46]
[1754631204488,3.11,174.39,174.35,153.72905862]
[1754631204685,3.11,174.39,174.36,5.734]
[1754631204886,3.11,174.39,174.36,3.12]
[1754631205082,6.35794759,174.4,174.36,3.12]
[1754631205382,3.11,174.4,174.37,5.7337]
[1754631205586,6.35794759,174.4,174.38,3.12]
[1754631206788,12.09084759,174.4,174.38,3.12]
[1754631208081,5.7326,174.42,174.38,5.7335]
[1754631208286,3.24794759,174.41,174.39,3.12]
[1754631208788,6.35794759,174.41,174.39,3.12]
[1754631209084,3.24794759,174.41,174.38,5.7335]
[1754631209288,12.09054759,174.41,174.4,3.12]
[1754631210292,6.35794759,174.41,174.4,3.12]
[1754631211491,12.09064759,174.41,174.4,3.12]
[1754631211990,6.41794759,174.44,174.4,3.12]
[1754631212191,3.24794759,174.44,174.4,3.12]
[1754631212580,3.24794759,174.46,174.4,104.48]
[1754631212786,3.24794759,174.48,174.41,3.24]
[1754631212988,3.24794759,174.48,174.45,5.7311]
[1754631213182,8.97844759,174.48,174.46,3.24]
[1754631213389,5.7305,174.48,174.46,3.24]
[1754631214096,8.97784759,174.5,174.46,3.24]
[1754631214300,8.8999,174.5,174.46,3.24]
[1754631214797,8.8999,174.5,174.47,5.7305]
[1754631215091,8.8999,174.5,174.48,3.24]
[1754631215296,5.7299,174.5,174.48,3.24]
[1754631216096,8.8999,174.5,174.48,3.24]
[1754631217298,8.8994,174.51,174.48,3.24]
[1754631217495,3.17,174.51,174.44,3.24794759]
[1754631217697,6.41794759,174.53,174.49,3.24]
[1754631217998,8.8992,174.52,174.49,8.9699]
[1754631218200,3.17,174.52,174.49,5.7299]
[1754631218496,3.17,174.52,174.5,3.24]
[1754631219399,8.899,174.52,174.51,3.24]
[1754631221600,3.17,174.52,174.51,3.24]
[1754631221798,6.41794759,174.53,174.51,3.24]
[1754631221997,6.41794759,174.55,174.51,3.24]
[1754631222398,6.41794759,174.57,174.51,3.24]
[1754631222899,5.7279,174.56,174.53,3.24]
[1754631223198,3.17,174.57,174.53,3.24]
[1754631223401,8.898,174.56,174.53,3.24]
[1754631223800,3.17,174.56,174.53,3.24]
[1754631224601,3.17,174.55,174.54,3.24]
[1754631227300,8.898,174.55,174.54,3.24]
[1754631227700,5.76954697,174.56,174.54,3.24]
[1754631227900,8.93954697,174.56,174.54,3.24]
[1754631232109,8.93954697,174.56,174.55,3.24]
[1754631240012,0.04174697,174.56,174.53,0.04095646]
[1754631240218,0.04174697,174.56,174.54,3.24]
[1754631240814,3.21174697,174.56,174.54,3.24]
[1754631241113,8.93954697,174.56,174.54,3.24]
[1754631242315,5.76954697,174.56,174.54,3.24]
[1754631243016,0.04174697,174.56,174.54,3.24]
[1754631243223,0.04174697,174.56,174.55,3.32]
[1754631243817,0.04174697,174.56,174.55,9.048]
[1754631245219,0.04174697,174.56,174.53,0.04095646]
[1754631245420,3.12174697,174.56,174.54,3.32]
[1754631245622,0.04174697,174.56,174.54,3.32]
[1754631246216,0.04174697,174.56,174.54,9.0483]
[1754631246422,0.04174697,174.56,174.54,3.32]
[1754631246825,0.04174697,174.56,174.54,9.0481]
[1754631247417,0.04174697,174.56,174.55,3.32]
[1754631260638,0.04174697,174.56,174.55,9.048]
[1754631262342,0.04174697,174.56,174.55,3.32]
[1754631262844,5.76944697,174.56,174.55,3.32]
[1754631263643,0.04174697,174.56,174.55,3.32]
[1754631266440,0.04174697,174.56,174.53,0.04095646]
[1754631266644,6.32794759,174.54,174.53,3.36095646]
[1754631266844,6.32794759,174.54,174.53,0.04095646]
[1754631267346,12.05624759,174.54,174.53,0.04095646]
[1754631268644,3.08,174.51,174.44,3.32]
[1754631268847,6.32794759,174.5,174.44,3.32]
[1754631269241,6.32794759,174.5,174.45,5.7311]
[1754631269546,6.32794759,174.5,174.46,3.32]
[1754631269750,5.73,174.49,174.46,3.32]
[1754631270040,8.84732742,174.49,174.46,3.32]
[1754631270944,12.09527501,174.49,174.47,3.32]
[1754631271346,5.7303,174.48,174.47,3.32]
[1754631271546,8.8103,174.48,174.47,3.32]
[1754631271947,5.7312,174.46,174.39,3.24794759]
[1754631272140,5.7312,174.46,174.45,3.12]
[1754631272539,5.7308,174.47,174.45,3.12]
[1754631272744,0.03904976,174.47,174.45,3.12]
[1754631273152,3.23904976,174.47,174.45,3.12]
[1754631273450,5.7309,174.46,174.45,3.12]
[1754631274251,8.97884759,174.46,174.45,3.12]
[1754631275751,6.44794759,174.46,174.45,3.12]
[1754631276251,12.17884759,174.46,174.45,3.12]
[1754631276460,3.2,174.45,174.39,3.12]
[1754631276645,6.44794759,174.42,174.39,3.12]
[1754631277351,6.48832622,174.42,174.39,3.12]
[1754631277552,12.22072622,174.42,174.39,3.12]
[1754631277946,0.04037863,174.42,174.39,3.12]
[1754631278252,0.04037863,174.42,174.39,8.853]
[1754631278553,0.04037863,174.42,174.39,3.12]
[1754631278951,0.04037863,174.42,174.39,5.7331]
[1754631279152,0.04037863,174.42,174.4,3.12]
[1754631279348,5.77267863,174.42,174.4,3.12]
[1754631279553,8.97267863,174.42,174.4,3.12]
[1754631280755,5.77267863,174.42,174.4,3.12]
[1754631281054,0.04037863,174.42,174.4,3.12]
[1754631281353,0.04037863,174.42,174.4,8.8528]
[1754631281753,0.04037863,174.42,174.41,3.12]
[1754631282750,0.04037863,174.42,174.41,8.8526]
[1754631288152,0.04037863,174.42,174.35,153.72905862]
[1754631288153,6.48794759,174.49,174.46,5.7309]
[1754631288347,6.48794759,174.49,174.48,3.12]
[1754631288656,5.7305,174.48,174.46,3.12]
[1754631288859,8.9705,174.48,174.47,3.12]
[1754631289953,5.7307,174.47,174.44,5.7315]
[1754631290153,6.48794759,174.46,174.4,3.12]
[1754631290354,3.24794759,174.46,174.4,3.12]
[1754631290557,3.24,174.44,174.4,3.12]
[1754631290851,3.24,174.45,174.44,3.12]
[1754631292059,8.9713,174.45,174.44,3.12]
[1754631292259,3.24794759,174.46,174.42,3.12]
[1754631292559,3.24,174.44,174.42,3.12]
[1754631293761,8.9716,174.44,174.42,3.12]
[1754631296064,5.7319,174.43,174.42,3.12]
[1754631296763,8.9717,174.44,174.42,3.12]
[1754631298968,5.7319,174.43,174.42,3.12]
[1754631300969,8.9717,174.44,174.42,8.8523]
[1754631301159,5.7317,174.44,174.42,8.8523]
[1754631301869,5.7317,174.44,174.42,5.7323]
[1754631302068,5.7317,174.44,174.43,3.2]
[1754631303468,8.7817,174.44,174.43,3.2]
[1754631304763,5.7314,174.45,174.43,3.2]
[1754631305167,6.29794759,174.47,174.43,8.9317]
[1754631305467,3.05,174.45,174.44,3.2]
[1754631305863,3.05,174.46,174.44,8.9315]
[1754631306067,3.05,174.46,174.45,3.2]
[1754631306672,3.24794759,174.47,174.45,3.2]
[1754631306872,12.02854759,174.47,174.46,3.2]
[1754631308269,8.97854759,174.47,174.46,3.2]
[1754631308466,3.24794759,174.49,174.46,3.2]
[1754631308672,3.05,174.5,174.46,3.2]
[1754631308878,5.73,174.49,174.48,3.2]
[1754631309975,8.78,174.49,174.48,3.2]
[1754631322686,10.8618342,174.49,174.48,3.2]
[1754631324090,7.8118342,174.49,174.48,3.2]
[1754631324484,5.73,174.49,174.48,3.2]
[1754631324688,7.8118342,174.49,174.48,3.2]
[1754631326281,10.8618342,174.49,174.48,3.2]
[1754631333497,8.78,174.49,174.48,3.2]
[1754631333690,10.8618342,174.49,174.48,3.2]
[1754631334794,7.8118342,174.49,174.48,3.2]
[1754631335493,5.7305,174.48,174.46,3.04]
[1754631335693,3.24,174.47,174.46,3.04]
[1754631335899,11.0523342,174.48,174.46,3.04]
[1754631336194,8.9705,174.48,174.46,3.04]
[1754631336395,7.8123342,174.48,174.46,3.04]
[1754631338695,5.7305,174.48,174.46,8.7708]
[1754631338888,5.7305,174.48,174.47,3.04]
[1754631342799,2.0818342,174.49,174.48,3.04]
[1754631343899,8.9698,174.5,174.48,3.04]
[1754631344101,11.0516342,174.5,174.48,3.04]
[1754631344502,5.73,174.49,174.48,3.04]
[1754631344797,8.97,174.49,174.48,3.04]
[1754631345697,5.7305,174.48,174.47,3.04]
[1754631345998,11.0523342,174.48,174.47,3.04]
[1754631346400,5.7312,174.46,174.44,3.04]
[1754631346591,5.3218342,174.45,174.44,3.04]
[1754631346998,11.0531342,174.45,174.44,3.04]
[1754631347503,5.3218342,174.45,174.44,3.04]
[1754631348203,11.0531342,174.45,174.44,3.04]
[1754631349905,5.3218342,174.45,174.44,3.04]
[1754631350505,11.0531342,174.45,174.44,3.04]
[1754631351398,5.3218342,174.45,174.44,3.04]
[1754631351605,5.7311,174.46,174.44,3.04]
[1754631351606,7.8129342,174.46,174.44,3.04]
[1754631352204,11.0529342,174.46,174.44,3.04]
[1754631354204,5.7313,174.45,174.44,3.04]
[1754631354505,8.9713,174.45,174.44,3.04]
[1754631356403,3.24,174.45,174.44,3.04]
[1754631356601,5.7311,174.46,174.44,3.04]
[1754631356903,11.0519342,174.49,174.46,5.7308]
[1754631357098,7.8119342,174.49,174.45,3.04]
[1754631357401,5.3218342,174.51,174.47,3.04]
[1754631357706,5.7298,174.5,174.48,5.7303]
[1754631357899,5.7298,174.5,174.49,3.04]
[1754631358203,8.9698,174.5,174.49,3.04]
[1754631361910,2.0818342,174.51,174.49,3.04]
[1754631362103,3.12,174.51,174.49,3.04]
[1754631362306,5.2018342,174.51,174.49,3.04]
[1754631363108,3.12,174.51,174.49,3.04]
[1754631363407,5.2018342,174.51,174.49,3.04]
[1754631363810,10.9312342,174.51,174.49,3.04]
[1754631364505,5.7288,174.53,174.5,3.31]
[1754631364709,2.0818342,174.53,174.5,3.31]
[1754631365306,2.0818342,174.53,174.52,3.31]
[1754631365706,7.8104342,174.53,174.52,3.31]
[1754631367110,10.9304342,174.53,174.52,3.31]
[1754631368605,7.8104342,174.53,174.52,3.31]
[1754631368910,2.0818342,174.53,174.52,3.31]
[1754631369508,7.8104342,174.53,174.52,3.31]
[1754631369714,10.9304342,174.53,174.52,3.31]
[1754631371012,3.12,174.52,174.48,3.31]
[1754631371211,3.12,174.49,174.48,3.31]
[1754631375114,10.9317342,174.5,174.48,3.31]
[1754631375313,10.9317342,174.5,174.49,3.31]
[1754631378015,8.8499,174.5,174.49,3.31]
[1754631378315,10.9317342,174.5,174.49,3.31]
[1754631378614,5.2018342,174.5,174.49,3.31]
[1754631378816,2.0818342,174.5,174.49,3.31]
[1754631380513,2.0818342,174.51,174.49,3.31]
[1754631380715,2.0818342,174.52,174.5,5.7296]
[1754631380916,2.0818342,174.52,174.51,3.31]
[1754631381108,3.12,174.55,174.51,3.31]
[1754631381312,2.0818342,174.53,174.52,3.31]
[1754631381612,5.2018342,174.53,174.52,3.31]
[1754631382214,3.12,174.55,174.52,3.31]
[1754631382413,2.0818342,174.54,174.52,9.039]
[1754631382618,2.0818342,174.54,174.53,3.31]
[1754631382813,5.2018342,174.54,174.53,3.31]
[1754631383524,10.9301342,174.54,174.53,3.31]
[1754631385916,5.7286,174.53,174.52,3.31]
[1754631386114,2.0818342,174.53,174.48,3.31]
[1754631386314,5.2018342,174.51,174.48,3.31]
[1754631386918,10.9311342,174.51,174.49,3.31]
[1754631388615,7.8111342,174.51,174.49,3.31]
[1754631388823,7.8111342,174.51,174.5,3.31]
[1754631391522,2.0818342,174.51,174.5,3.31]
[1754631392021,5.2318342,174.51,174.5,3.31]
[1754631392221,10.9611342,174.51,174.5,3.31]
[1754631392518,5.2318342,174.51,174.47,3.18]
[1754631392719,8.8803,174.48,174.47,3.18]
[1754631393423,3.15,174.48,174.47,3.18]
[1754631393613,2.0818342,174.48,174.47,3.18]
[1754631393818,2.0818342,174.48,174.47,8.9106]
[1754631394719,5.7298,174.5,174.48,3.18]
[1754631395124,8.8798,174.5,174.48,3.18]
[1754631395429,12.13262137,174.49,174.48,3.18]
[1754631395628,3.15,174.48,174.46,3.18]
[1754631395825,3.15,174.47,174.4,3.25262137]
[1754631396325,3.15,174.47,174.45,5.7313]
[1754631396524,8.8806,174.48,174.46,3.18]
[1754631396723,12.13262137,174.49,174.46,3.18]
[1754631397120,6.40262137,174.49,174.47,3.18]
[1754631397421,3.25262137,174.5,174.47,3.18]
[1754631397628,6.40262137,174.5,174.47,3.18]
[1754631398026,5.7302,174.49,174.47,3.18]
[1754631398220,6.40262137,174.5,174.47,5.7305]
[1754631398420,6.40262137,174.5,174.48,3.18]
[1754631398626,5.73,174.49,174.48,3.18]
[1754631398828,8.88,174.49,174.48,3.18]
[1754631400530,3.15,174.49,174.48,3.18]
[1754631400724,12.13232137,174.5,174.48,3.18]
[1754631402632,8.88,174.49,174.46,5.7308]
[1754631402831,3.15,174.49,174.42,3.25262137]
[1754631403234,5.7305,174.48,174.45,5.731]
[1754631403439,8.8805,174.48,174.46,3.18]
[1754631403934,8.8801,174.49,174.47,3.18]
[1754631404233,3.15,174.49,174.47,3.18]
[1754631404528,12.13252137,174.5,174.47,8.9105]
[1754631404734,6.40262137,174.5,174.47,3.18]
[1754631405335,5.7302,174.49,174.47,3.18]
[1754631406434,5.7303,174.48,174.47,3.18]
[1754631407137,5.73,174.49,174.47,3.18]
[1754631407937,8.88,174.49,174.47,3.18]
[1754631408138,8.88,174.49,174.47,5.7305]
[1754631408434,5.73,174.49,174.48,3.18]
[1754631408634,8.98242137,174.5,174.47,5.7304]
[1754631408839,3.25262137,174.5,174.48,3.18]
[1754631409040,3.25262137,174.53,174.48,3.18]
[1754631409229,5.729,174.52,174.5,5.7294]
[1754631409433,5.729,174.52,174.51,3.18]
[1754631410942,12.13142137,174.53,174.51,3.18]
[1754631411143,12.13142137,174.53,174.52,3.18]
[1754631411332,6.40262137,174.53,174.52,3.18]
[1754631412238,12.13072137,174.55,174.52,5.729]
[1754631412445,3.15,174.54,174.53,3.18]
[1754631413343,8.8783,174.54,174.53,3.18]
[1754631420447,3.25262137,174.57,174.53,3.18]
[1754631420651,3.15,174.56,174.54,3.18]
[1754631420846,5.22980661,174.56,174.54,3.18]
[1754631421048,10.95760661,174.56,174.54,3.18]
[1754631421242,5.22980661,174.55,174.54,3.18]
[1754631421650,10.95780661,174.55,174.54,3.18]
[1754631421850,3.15,174.55,174.54,3.18]
[1754631422055,5.14980661,174.56,174.54,3.18]
[1754631422256,10.87760661,174.56,174.54,3.18]
[1754631422456,8.7978,174.56,174.54,3.18]
[1754631422659,5.7278,174.56,174.54,3.18]
[1754631424458,8.7978,174.56,174.54,3.18]
[1754631425057,5.7278,174.56,174.54,3.18]
[1754631425858,8.7978,174.56,174.54,3.18]
[1754631428862,3.07,174.56,174.54,3.18]
[1754631429865,8.7977,174.56,174.54,3.18]
[1754631430461,3.07,174.56,174.54,3.18]
[1754631432260,3.07,174.56,174.54,8.9081]
[1754631432464,8.7975,174.57,174.55,3.1]
[1754631433164,5.7277,174.56,174.55,3.1]
[1754631433464,8.7977,174.56,174.55,3.1]
[1754631436664,3.07,174.56,174.55,3.1]
[1754631441566,3.07,174.57,174.55,3.1]
[1754631441864,8.7971,174.58,174.55,3.1]
[1754631442465,8.7971,174.58,174.55,8.8278]
[1754631442666,2.07969381,174.57,174.56,3.1]
[1754631443266,8.7971,174.58,174.56,3.1]
[1754631443563,2.07969381,174.57,174.56,8.8277]
[1754631443764,2.07969381,174.57,174.56,3.1]
[1754631445768,5.14969381,174.57,174.56,3.1]
[1754631446370,2.07969381,174.57,174.56,8.8277]
[1754631446567,5.14969381,174.57,174.56,8.8277]
[1754631447263,5.14969381,174.57,174.56,3.1]
[1754631447568,2.07969381,174.57,174.56,3.1]
[1754631450573,7.80699381,174.57,174.56,3.1]
[1754631450773,10.87699381,174.57,174.56,3.1]
[1754631450969,8.7973,174.57,174.56,3.1]
[1754631451168,10.87699381,174.57,174.56,3.1]
[1754631451768,8.7973,174.57,174.56,3.1]
[1754631451969,10.87699381,174.57,174.56,3.1]
[1754631452767,7.79969381,174.57,174.45,11.4623]
[1754631452975,2.07969381,174.53,174.49,3.32]
[1754631453469,5.29969381,174.58,174.53,3.32]
[1754631453872,5.7273,174.57,174.54,5.7281]
[1754631454071,5.7273,174.57,174.55,3.32]
[1754631454272,5.29969381,174.58,174.55,3.32]
[1754631454475,2.07969381,174.56,174.55,3.32]
[1754631454775,5.29969381,174.56,174.55,3.32]
[1754631455573,11.02739381,174.56,174.55,3.32]
[1754631457879,3.22,174.56,174.55,3.32]
[1754631458069,2.07969381,174.56,174.55,3.32]
[1754631458472,7.80739381,174.56,174.55,3.32]
[1754631459272,2.07969381,174.56,174.55,3.32]
[1754631462178,2.07969381,174.56,174.55,9.048]
[1754631462483,3.22,174.57,174.56,3.32]
[1754631463880,2.07969381,174.58,174.57,3.32]
[1754631464385,5.29969381,174.58,174.57,3.32]
[1754631465185,11.02669381,174.58,174.57,3.32]
[1754631470682,5.29969381,174.58,174.57,3.32]
[1754631471286,11.02669381,174.58,174.57,3.32]
[1754631472888,5.29969381,174.58,174.57,3.32]
[1754631475086,2.07969381,174.58,174.57,3.32]
[1754631483087,2.07969381,174.58,174.57,9.0473]
[1754631483693,2.07969381,174.58,174.57,3.32]
[1754631486097,11.02649381,174.59,174.57,3.32]
[1754631486597,2.07969381,174.59,174.57,9.0472]
[1754631486798,5.29969381,174.61,174.58,3.12]
[1754631487297,5.7264,174.6,174.58,3.12]
[1754631487598,8.9464,174.6,174.58,3.12]
[1754631487797,3.22,174.59,174.58,3.12]
[1754631488199,5.29969381,174.59,174.58,3.12]
[1754631489300,11.02639381,174.59,174.58,3.12]
[1754631489505,3.22,174.58,174.51,2.07969381]
[1754631489705,2.07969381,174.56,174.52,3.12]
[1754631491206,2.07969381,174.56,174.54,5.7281]
[1754631491507,8.9474,174.57,174.55,3.12]
[1754631491702,11.02709381,174.57,174.55,3.12]
[1754631492000,5.7271,174.58,174.56,3.12]
[1754631492207,8.9471,174.58,174.56,3.12]
[1754631495007,11.02669381,174.58,174.56,3.12]
[1754631496204,5.29969381,174.58,174.56,8.8476]
[1754631496406,5.29969381,174.58,174.57,3.12]
[1754631496608,5.29969381,174.62,174.58,3.12]
[1754631496803,2.07969381,174.62,174.59,5.7265]
[1754631497000,5.29969381,174.64,174.6,3.12]
[1754631498208,11.02489381,174.64,174.61,5.726]
[1754631498409,3.22,174.63,174.61,5.726]
[1754631498604,3.22,174.61,174.49,3.12]
[1754631498909,3.22,174.57,174.56,3.12]
[1754631499109,5.29969381,174.58,174.56,3.12]
[1754631499313,3.22,174.57,174.55,5.7278]
[1754631499607,2.07969381,174.58,174.55,5.7278]
[1754631499810,2.07969381,174.58,174.53,2.07969381]
[1754631500010,2.07969381,174.58,174.56,3.12]
[1754631500212,5.29969381,174.58,174.56,3.12]
[1754631500406,5.29969381,174.58,174.56,5.7276]
[1754631500612,5.29969381,174.58,174.57,3.12]
[1754631501612,11.02669381,174.58,174.57,3.12]
[1754631502513,7.80669381,174.58,174.52,2.07969381]
[1754631502813,2.07969381,174.56,174.52,2.07969381]
[1754631503212,2.07969381,174.56,174.53,3.12]
[1754631504013,2.07969381,174.56,174.55,5.7279]
[1754631504215,3.22,174.66,174.55,3.12]
[1754631504417,2.07969381,174.59,174.55,3.12]
[1754631504609,2.07969381,174.59,174.58,3.12]
[1754631505817,8.9465,174.6,174.58,8.847]
[1754631506115,2.07969381,174.61,174.56,2.07969381]
[1754631506315,2.07969381,174.61,174.57,3.12]
[1754631506614,2.07969381,174.61,174.6,5.7263]
[1754631506814,2.07969381,174.61,174.6,8.8463]
[1754631507016,3.22,174.63,174.6,3.12]
[1754631507216,2.07969381,174.62,174.61,5.7259]
[1754631507407,2.07969381,174.62,174.61,3.12]
[1754631507608,5.29969381,174.62,174.61,3.12]
[1754631508412,3.22,174.61,174.54,5.7281]
[1754631508620,2.07969381,174.56,174.53,3.12]
[1754631509019,2.07969381,174.56,174.55,5.7279]
[1754631509719,2.07969381,174.56,174.55,8.8479]
[1754631510213,3.22,174.55,174.52,3.12]
[1754631510417,2.07969381,174.54,174.52,3.12]
[1754631510719,6.47071046,174.56,174.54,5.7281]
[1754631510919,6.47071046,174.56,174.55,3.12]
[1754631511918,12.19841046,174.56,174.55,3.12]
[1754631512121,3.08,174.55,174.52,3.14]
[1754631512421,3.25071046,174.53,174.52,8.8688]
[1754631514323,3.25071046,174.53,174.52,3.14]
[1754631514621,3.08,174.52,174.51,3.14]
[1754631514821,3.25071046,174.53,174.51,8.8691]
[1754631515022,6.33071046,174.53,174.52,3.14]
[1754631515920,3.08,174.54,174.53,3.14]
[1754631516122,6.33071046,174.54,174.53,3.14]
[1754631517620,3.25071046,174.54,174.53,3.14]
[1754631520826,6.33071046,174.54,174.53,3.14]
[1754631522130,3.25071046,174.54,174.53,8.8686]
[1754631522319,3.25071046,174.56,174.53,3.14]
[1754631522528,3.25071046,174.57,174.53,3.14]
[1754631522825,6.33071046,174.57,174.53,3.14]
[1754631523026,6.33071046,174.57,174.56,3.14]
[1754631523924,3.25071046,174.57,174.56,3.14]
[1754631525724,6.33071046,174.57,174.56,3.14]
[1754631527028,3.25071046,174.57,174.56,3.14]
[1754631530632,12.05751046,174.59,174.56,3.14]
[1754631530931,6.33071046,174.59,174.56,3.14]
[1754631531234,12.05751046,174.59,174.56,3.14]
[1754631531430,8.97751046,174.59,174.57,3.14]
[1754631531632,12.05751046,174.59,174.57,3.14]
[1754631531829,6.33071046,174.62,174.57,3.14]
[1754631532134,3.08,174.62,174.59,5.7265]
[1754631532332,8.8059,174.62,174.6,3.14]
[1754631533135,8.8055,174.63,174.61,3.14]
[1754631533432,6.33071046,174.65,174.61,3.14]
[1754631533731,8.8048,174.65,174.63,3.14]
[1754631533925,3.08,174.65,174.63,3.14]
[1754631534935,8.8048,174.65,174.63,3.14]
[1754631535637,5.7248,174.65,174.63,3.14]
[1754631536037,8.8045,174.66,174.63,3.14]
[1754631536939,8.8045,174.66,174.63,5.7253]
[1754631537138,8.8045,174.66,174.64,3.14]
[1754631537335,5.7245,174.66,174.65,3.14]
[1754631537636,8.8045,174.66,174.65,3.14]
[1754631538037,3.08,174.66,174.65,3.14]
[1754631538839,8.8038,174.68,174.65,3.14]
[1754631539140,5.7238,174.68,174.65,3.14]
[1754631539437,3.08,174.68,174.66,3.14]
[1754631539734,8.97421046,174.69,174.66,3.14]
[1754631539940,3.25071046,174.71,174.67,3.14]
[1754631540241,14.69201046,174.78,174.65,3.14]
[1754631540242,3.25071046,174.69,174.65,3.14]
[1754631540440,3.08,174.66,174.63,3.14]
[1754631540736,3.08,174.66,174.59,3.14]
[1754631540940,3.08,174.64,174.62,3.14]
[1754631541140,3.08,174.63,174.62,3.14]
[1754631541342,8.805,174.65,174.62,3.14]
[1754631541538,3.08,174.65,174.63,3.14]
[1754631541840,6.34071046,174.67,174.63,3.14]
[1754631542141,6.34071046,174.68,174.65,3.09]
[1754631542541,3.09,174.67,174.65,3.09]
[1754631543144,3.09,174.66,174.65,3.09]
[1754631543643,3.25071046,174.66,174.61,3.09]
[1754631543943,6.34071046,174.65,174.61,5.726]
[1754631544145,3.25071046,174.65,174.61,5.726]